bitfinex/quotes_SOLUSD_20220118
["timestamp","ask_amount","ask_price","bid_price","bid_amount"]
[1642547916835,2.842,140.77,140.71,0.25]
[1642547917236,2.842,140.77,140.7,0.25]
[1642547917435,24.7892,140.76,140.7,0.25]
[1642547918039,2.842,140.75,140.69,0.25]
[1642547918236,2.842,140.75,140.66,23.3571]
[1642547918438,0.25,140.74,140.66,6.0]
[1642547918639,2.842,140.73,140.65,2.00687707]
[1642547918838,2.842,140.73,140.64,2.842]
[1642547918839,70.82,140.71,140.64,2.842]
[1642547919040,8.843,140.7,140.64,2.842]
[1642547920038,2.843,140.7,140.64,2.842]
[1642547921139,22.7944,140.71,140.65,0.25]
[1642547921738,0.25,140.7,140.63,2.843]
[1642547921937,3.093,140.7,140.61,2.843]
[1642547922137,10.6676,140.68,140.6,8.00687707]
[1642547922339,2.844,140.67,140.61,6.0]
[1642547922539,2.844,140.68,140.61,6.0]
[1642547922742,36.15118753,140.67,140.61,6.0]
[1642547923041,36.15118753,140.67,140.6,55.19694906]
[1642547923440,36.15118753,140.67,140.61,0.25]
[1642547923646,2.844,140.66,140.61,0.25]
[1642547923840,9.094,140.66,140.59,2.844]
[1642547924042,70.82,140.65,140.59,2.844]
[1642547924241,2.844,140.64,140.57,26.34217707]
[1642547924443,16.065,140.64,140.56,24.1177]
[1642547924642,15.815,140.64,140.56,24.1177]
[1642547925241,0.25,140.63,140.55,48.72122268]
[1642547925442,0.25,140.63,140.55,43.87034561]
[1642547926342,59.88914282,140.61,140.55,43.87034561]
[1642547926542,6.0,140.6,140.55,43.87034561]
[1642547926742,59.88914282,140.61,140.55,43.87034561]
[1642547927142,59.88914282,140.61,140.54,2.845]
[1642547927542,59.88914282,140.61,140.55,0.25]
[1642547929444,59.88914282,140.61,140.54,39.35479349]
[1642547930246,62.73414282,140.61,140.54,39.35479349]
[1642547930748,62.73414282,140.61,140.55,0.25]
[1642547933548,62.73414282,140.61,140.54,0.25]
[1642547933749,10.6742,140.59,140.52,2.845]
[1642547933951,73.665,140.58,140.52,2.845]
[1642547934151,87.265,140.58,140.52,2.845]
[1642547934550,59.0,140.57,140.46,2.035015]
[1642547934750,73.916,140.56,140.46,0.02813793]
[1642547934951,90.166,140.56,140.46,0.02813793]
[1642547935149,23.1377,140.55,140.46,0.02813793]
[1642547935449,36.97399693,140.53,140.46,0.02813793]
[1642547935649,19.097,140.52,140.46,0.02813793]
[1642547935851,10.6828,140.51,140.46,0.02813793]
[1642547936050,2.847,140.5,140.46,0.02813793]
[1642547936251,125.7761,140.52,140.46,0.02813793]
[1642547937052,10.6812,140.5,140.46,0.02813793]
[1642547937251,18.0342,140.5,140.46,0.02813793]
[1642547937852,7.353,140.5,140.46,0.02813793]
[1642547938052,13.097,140.56,140.46,0.02813793]
[1642547938255,76.8682,140.57,140.47,1.47103202]
[1642547938454,74.0212,140.57,140.47,1.47103202]
[1642547938653,74.0212,140.57,140.48,0.25]
[1642547938855,76.8672,140.57,140.48,0.25]
[1642547939057,60.02005682,140.56,140.48,0.25]
[1642547939256,2.846,140.55,140.48,0.25]
[1642547940356,2.846,140.55,140.48,50.03746851]
[1642547940556,74.0212,140.57,140.48,51.50850053]
[1642547940757,57.8336,140.59,140.48,51.50850053]
[1642547940956,47.5836,140.59,140.49,6.0]
[1642547941157,6.0,140.58,140.49,6.0]
[1642547941357,6.0,140.58,140.5,12.39573202]
[1642547941563,37.08143875,140.57,140.5,12.39573202]
[1642547944258,0.25,140.56,140.47,1.47103202]
[1642547944459,3.096,140.56,140.48,0.25]
[1642547945459,13.7728,140.56,140.48,0.25]
[1642547946487,70.82,140.55,140.48,0.25]
[1642547946690,13.7741,140.54,140.46,0.02813793]
[1642547946887,19.7741,140.54,140.46,0.02813793]
[1642547947088,90.5941,140.54,140.46,0.02813793]
[1642547947890,19.7741,140.54,140.46,0.02813793]
[1642547948392,13.7741,140.54,140.46,0.02813793]
[1642547948592,10.6781,140.54,140.46,0.02813793]
[1642547948791,48.181,140.56,140.46,1.49928731]
[1642547948992,45.335,140.56,140.47,6.0]
[1642547949193,45.335,140.56,140.47,6.25]
[1642547950491,45.335,140.56,140.48,10.6765]
[1642547950691,45.335,140.56,140.49,0.25]
[1642547951696,48.181,140.56,140.49,0.25]
[1642547951895,48.181,140.56,140.46,0.02813793]
[1642547952098,37.931,140.56,140.48,0.25]
[1642547952296,37.931,140.56,140.46,1.49928731]
[1642547952695,37.931,140.56,140.47,0.25]
[1642547952895,37.931,140.56,140.48,10.6766]
[1642547953096,2.846,140.56,140.49,40.54378457]
[1642547953295,25.6298,140.59,140.49,40.79378457]
[1642547953495,22.7838,140.59,140.49,42.26493395]
[1642547953697,6.0,140.58,140.5,6.0]
[1642547954198,6.0,140.58,140.51,10.9238]
[1642547955696,0.25,140.57,140.51,10.6738]
[1642547955899,2.846,140.57,140.51,10.6738]
[1642547956097,6.0,140.58,140.51,10.6738]
[1642547957097,6.0,140.58,140.52,10.9237]
[1642547957297,6.0,140.58,140.52,10.6737]
[1642547957499,6.0,140.58,140.53,0.25]
[1642547958798,6.0,140.58,140.52,10.6737]
[1642547958998,19.52,140.58,140.5,16.6745]
[1642547959201,0.25,140.57,140.5,10.6745]
[1642547959400,2.846,140.56,140.5,10.6745]
[1642547960198,2.846,140.56,140.51,0.25]
[1642547961306,2.846,140.57,140.51,0.25]
[1642547961501,82.8636122,140.61,140.52,11.72114938]
[1642547961703,80.0176122,140.61,140.53,0.25]
[1642547961900,80.0176122,140.61,140.53,17.97114938]
[1642547962100,80.0176122,140.61,140.54,7.47114938]
[1642547962299,80.0176122,140.61,140.55,47.99003087]
[1642547962501,1.92354871,140.62,140.56,6.0]
[1642547962702,1.92354871,140.62,140.57,0.25]
[1642547963102,42.57067502,140.63,140.57,0.25]
[1642547963302,47.4424,140.66,140.57,1.72114938]
[1642547963502,47.4424,140.66,140.57,9.18514938]
[1642547964204,90.93889472,140.66,140.58,10.6686]
[1642547964601,90.93889472,140.66,140.59,0.25]
[1642547964802,43.49649472,140.66,140.59,0.25]
[1642547965003,13.5117,140.68,140.59,0.25]
[1642547965204,2.844,140.68,140.59,22.63894938]
[1642547965405,3.33293739,140.69,140.59,22.63894938]
[1642547965805,1.40938868,140.69,140.6,6.0]
[1642547966002,36.18790325,140.68,140.61,10.25]
[1642547966204,39.03090325,140.68,140.61,10.5]
[1642547967204,36.18790325,140.68,140.61,10.5]
[1642547967405,36.18790325,140.68,140.61,11.97114938]
[1642547967605,36.18790325,140.68,140.62,10.6656]
[1642547967804,36.18790325,140.68,140.63,0.25]
[1642547969107,1.40938868,140.69,140.63,16.9152]
[1642547969310,1.40938868,140.69,140.64,0.25]
[1642547969507,1.40938868,140.69,140.65,10.25]
[1642547969706,88.54415922,140.71,140.66,0.25]
[1642547969907,88.54415922,140.71,140.66,6.25]
[1642547970109,88.54415922,140.71,140.66,7.72114938]
[1642547970506,88.54415922,140.71,140.66,18.38314938]
[1642547970907,47.11676068,140.72,140.66,18.38314938]
[1642547971509,47.11676068,140.72,140.65,10.25]
[1642547971709,2.843,140.71,140.66,0.25]
[1642547972709,2.843,140.71,140.65,0.25]
[1642547972909,2.843,140.71,140.64,6.0]
[1642547973416,13.5084,140.71,140.64,6.0]
[1642547973710,13.5084,140.71,140.63,20.9152]
[1642547974313,13.5084,140.71,140.64,0.25]
[1642547979723,13.5084,140.71,140.64,10.9146]
[1642547979922,13.5084,140.71,140.65,41.93994638]
[1642547980149,10.6654,140.71,140.65,41.93994638]
[1642547980350,2.843,140.7,140.66,0.25]
[1642547980549,10.6654,140.71,140.66,0.25]
[1642547980750,2.843,140.72,140.66,0.25]
[1642547982050,34.0751,140.73,140.66,0.25]
[1642547982251,0.25,140.72,140.66,0.25]
[1642547984354,1.92354871,140.74,140.66,10.9131]
[1642547984553,1.92354871,140.74,140.67,10.25]
[1642547984754,1.92354871,140.74,140.68,0.25]
[1642547984955,1.92354871,140.74,140.68,7.72114938]
[1642547985357,69.06871391,140.76,140.68,7.72114938]
[1642547986059,69.06871391,140.76,140.68,17.97114938]
[1642547986556,69.06871391,140.76,140.69,10.6605]
[1642547986856,69.06871391,140.76,140.7,35.38299866]
[1642547987058,24.1019,140.76,140.7,35.38299866]
[1642547988360,1.56230646,140.77,140.7,46.04299866]
[1642547988959,1.56230646,140.77,140.7,10.91]
[1642547990159,12.22250646,140.77,140.7,0.25]
[1642547990361,3.092,140.76,140.68,10.25]
[1642547990561,3.092,140.76,140.69,0.25]
[1642547991159,29.2424,140.75,140.69,0.25]
[1642547991362,13.5044,140.74,140.69,0.25]
[1642547991560,46.97350413,140.73,140.65,10.6638]
[1642547991761,2.843,140.72,140.65,10.6638]
[1642547992161,6.0,140.71,140.65,10.6638]
[1642547992364,16.6643,140.71,140.65,10.6638]
[1642547992863,16.6643,140.71,140.66,0.25]
[1642547993563,16.6643,140.71,140.65,0.25]
[1642547993764,16.6643,140.71,140.63,0.25]
[1642547994064,16.6643,140.71,140.62,10.25]
[1642547994267,10.666,140.69,140.62,20.916]
[1642547994467,38.31112552,140.68,140.62,20.916]
[1642547995465,38.31112552,140.68,140.63,0.25]
[1642547995667,38.31112552,140.68,140.62,20.916]
[1642547997466,48.97752552,140.68,140.62,20.916]
[1642547997667,2.843,140.67,140.62,10.25]
[1642547997869,3.093,140.67,140.59,10.25]
[1642547998067,3.093,140.67,140.59,10.5]
[1642547998467,73.913,140.67,140.59,10.5]
[1642547998870,10.6684,140.66,140.59,10.5]
[1642547999068,2.844,140.65,140.59,10.5]
[1642547999268,3.094,140.65,140.59,10.5]
[1642547999469,3.094,140.65,140.59,10.25]
[1642548001572,10.6701,140.64,140.59,10.25]
[1642548001769,43.93889533,140.63,140.59,10.25]
[1642548002370,43.93889533,140.63,140.56,10.6698]
[1642548002571,43.93889533,140.63,140.57,0.25]
[1642548003172,0.25,140.62,140.56,10.25]
[1642548003475,3.095,140.62,140.56,10.25]
[1642548003673,9.526,140.62,140.56,10.25]
[1642548003872,6.0,140.61,140.52,10.25]
[1642548004072,2.845,140.6,140.52,16.5]
[1642548004273,3.095,140.6,140.52,10.5]
[1642548004472,38.42120076,140.58,140.52,21.1734]
[1642548005876,49.09550076,140.58,140.52,10.5]
[1642548006178,56.94250076,140.58,140.52,10.5]
[1642548006406,56.94250076,140.58,140.48,2.00687707]
[1642548006407,31.0,140.57,140.48,2.00687707]
[1642548006610,3.096,140.57,140.49,6.0]
[1642548007106,10.6766,140.55,140.49,6.0]
[1642548007306,38.42120076,140.58,140.49,7.47114938]
[1642548007508,38.42120076,140.58,140.5,10.25]
[1642548007707,38.42120076,140.58,140.51,0.25]
[1642548007908,38.42120076,140.58,140.51,6.25]
[1642548008812,38.42120076,140.58,140.51,16.9236]
[1642548009009,38.42120076,140.58,140.51,18.39474938]
[1642548010313,49.09530076,140.58,140.51,16.9236]
[1642548010511,49.09530076,140.58,140.51,10.9236]
[1642548010913,51.94130076,140.58,140.51,10.9236]
[1642548011613,51.94130076,140.58,140.51,12.39474938]
[1642548012316,49.09530076,140.58,140.51,12.39474938]
[1642548012716,49.09530076,140.58,140.51,10.9236]
[1642548012920,49.09530076,140.58,140.51,12.39474938]
[1642548014918,38.42120076,140.58,140.51,12.39474938]
[1642548016018,24.6244,140.59,140.52,6.0]
[1642548016221,10.6723,140.61,140.54,10.6718]
[1642548016726,76.849,140.62,140.55,0.25]
[1642548016921,2.845,140.61,140.55,0.25]
[1642548017123,41.44810825,140.62,140.56,1.47114938]
[1642548017320,41.44810825,140.62,140.57,10.6694]
[1642548017554,41.44810825,140.62,140.57,10.9194]
[1642548021029,41.44810825,140.62,140.57,0.25]
[1642548021430,41.44810825,140.62,140.56,6.25]
[1642548021628,41.44810825,140.62,140.56,0.25]
[1642548022431,41.44810825,140.62,140.56,10.9204]
[1642548023934,41.44810825,140.62,140.56,12.39154938]
[1642548024734,41.44810825,140.62,140.56,10.6704]
[1642548025057,41.44810825,140.62,140.55,10.25]
[1642548025260,44.29310825,140.62,140.55,10.25]
[1642548025459,41.44810825,140.62,140.55,10.25]
[1642548026159,2.845,140.61,140.56,0.25]
[1642548026359,41.44810825,140.62,140.56,0.25]
[1642548026559,52.11920825,140.62,140.56,0.25]
[1642548029761,2.845,140.61,140.56,0.25]
[1642548030163,13.5168,140.61,140.55,10.25]
[1642548030462,0.25,140.6,140.55,10.25]
[1642548030664,2.845,140.59,140.52,2.00687707]
[1642548031065,0.25,140.58,140.5,2.00687707]
[1642548031264,10.6762,140.56,140.5,8.25687707]
[1642548031464,44.7422315,140.55,140.5,8.25687707]
[1642548031866,44.7422315,140.55,140.5,0.25]
[1642548032067,50.9332315,140.55,140.5,0.25]
[1642548033066,50.9332315,140.55,140.49,20.9257]
[1642548033567,61.6094315,140.55,140.49,20.9257]
[1642548034572,61.6094315,140.55,140.5,0.25]
[1642548035673,50.9332315,140.55,140.5,0.25]
[1642548035872,44.7422315,140.55,140.5,0.25]
[1642548036175,10.6754,140.56,140.5,0.25]
[1642548036372,10.6754,140.56,140.5,10.925]
[1642548037178,2.846,140.57,140.5,10.925]
[1642548037179,13.5208,140.57,140.5,10.925]
[1642548037377,47.4037,140.59,140.53,10.6727]
[1642548037777,1.92354871,140.61,140.54,0.25]
[1642548038381,38.6978647,140.6,140.54,0.25]
[1642548038582,2.845,140.59,140.54,0.25]
[1642548039578,2.845,140.59,140.54,10.922]
[1642548039981,38.6978647,140.6,140.54,10.922]
[1642548042687,10.6718,140.61,140.54,10.922]
[1642548043489,10.6718,140.61,140.54,12.39314938]
[1642548046592,10.6718,140.61,140.55,10.25]
[1642548046792,67.68735439,140.62,140.56,0.25]
[1642548048596,78.35825439,140.62,140.56,0.25]
[1642548050301,75.51325439,140.62,140.56,10.9204]
[1642548050500,75.51325439,140.62,140.57,47.21537929]
[1642548050700,34.1959,140.62,140.57,47.21537929]
[1642548052823,37.0409,140.62,140.57,47.21537929]
[1642548054422,34.1959,140.62,140.57,47.21537929]
[1642548056425,37.0409,140.62,140.57,47.21537929]
[1642548058130,37.0409,140.62,140.56,10.9204]
[1642548058930,37.0409,140.62,140.56,0.25]
[1642548061636,23.525,140.62,140.56,21.17]
[1642548061836,23.525,140.62,140.56,27.17]
[1642548065843,23.525,140.62,140.56,16.5]
[1642548066241,23.525,140.62,140.56,10.25]
[1642548066445,0.25,140.61,140.52,12.25687707]
[1642548066642,9.095,140.61,140.52,12.25687707]
[1642548067046,9.095,140.61,140.52,10.25]
[1642548067344,45.58076223,140.59,140.52,10.25]
[1642548067544,59.09976223,140.59,140.53,0.25]
[1642548067746,56.25476223,140.59,140.53,0.25]
[1642548068845,2.845,140.58,140.53,0.25]
[1642548069045,10.6751,140.57,140.53,0.25]
[1642548069247,10.6751,140.57,140.5,12.25687707]
[1642548069448,10.6751,140.57,140.5,10.25]
[1642548069648,10.6751,140.57,140.51,42.32474219]
[1642548070674,10.6751,140.57,140.52,0.25]
[1642548073579,36.2451,140.58,140.52,0.25]
[1642548075180,33.4001,140.58,140.52,0.25]
[1642548075580,22.7262,140.58,140.52,10.9232]
[1642548076181,10.6732,140.59,140.52,10.9232]
[1642548076583,34.2936,140.59,140.52,10.9232]
[1642548079986,34.2936,140.59,140.52,10.6732]
[1642548080187,0.25,140.58,140.51,10.674]
[1642548080388,13.7694,140.58,140.51,20.924]
[1642548081089,13.7694,140.58,140.51,56.31632282]
[1642548081316,13.7694,140.58,140.52,0.25]
[1642548081487,37.1385,140.59,140.52,10.9231]
[1642548081687,23.6204,140.59,140.52,21.1731]
[1642548081888,1.92354871,140.6,140.53,1.47114938]
[1642548082095,1.92354871,140.6,140.54,10.25]
[1642548082289,1.92354871,140.6,140.54,10.5]
[1642548082488,1.92354871,140.6,140.54,11.97114938]
[1642548082688,6.0,140.61,140.54,11.97114938]
[1642548083590,6.0,140.61,140.55,10.6704]
[1642548083791,6.0,140.61,140.56,37.28709608]
[1642548084596,29.007,140.62,140.56,37.28709608]
[1642548085393,29.007,140.62,140.56,47.95719608]
[1642548085594,4.76854871,140.63,140.56,54.66919608]
[1642548085795,1.92354871,140.63,140.57,11.72114938]
[1642548085995,1.92354871,140.63,140.57,17.72114938]
[1642548086194,1.92354871,140.64,140.58,1.72114938]
[1642548086395,1.92354871,140.64,140.59,10.25]
[1642548086598,1.92354871,140.64,140.6,10.6658]
[1642548086795,1.92354871,140.64,140.61,40.5371131]
[1642548087199,1.92354871,140.64,140.62,0.25]
[1642548087495,48.39306304,140.67,140.62,0.25]
[1642548088297,48.39306304,140.67,140.61,0.25]
[1642548088598,48.39306304,140.67,140.62,10.6656]
[1642548088825,48.39306304,140.67,140.63,0.25]
[1642548089728,48.39306304,140.67,140.61,10.6664]
[1642548089925,51.20706304,140.67,140.61,10.6664]
[1642548091430,61.87416304,140.67,140.59,26.9173]
[1642548091629,0.25,140.66,140.59,16.25]
[1642548091828,2.844,140.65,140.59,16.25]
[1642548092231,0.25,140.64,140.59,16.25]
[1642548092428,37.79727671,140.64,140.59,16.25]
[1642548092627,38.04727671,140.64,140.59,16.25]
[1642548092828,37.79727671,140.64,140.59,16.25]
[1642548093030,37.79727671,140.64,140.59,10.25]
[1642548093431,13.5127,140.65,140.59,45.70910855]
[1642548093629,2.844,140.65,140.6,0.25]
[1642548093830,1.92354871,140.66,140.6,0.25]
[1642548094233,4.76754871,140.67,140.6,0.25]
[1642548094431,12.59124871,140.67,140.6,10.9172]
[1642548094633,50.07396126,140.67,140.6,10.9172]
[1642548094934,48.15041255,140.67,140.6,10.9172]
[1642548097032,50.99441255,140.67,140.6,10.9172]
[1642548098334,0.25,140.66,140.6,10.9172]
[1642548098735,0.25,140.66,140.59,20.918]
[1642548098736,10.918,140.66,140.59,20.918]
[1642548099135,10.918,140.66,140.59,10.25]
[1642548099335,2.844,140.65,140.59,10.25]
[1642548099735,2.844,140.65,140.6,0.25]
[1642548099938,55.9432152,140.64,140.6,0.25]
[1642548100138,55.9432152,140.64,140.57,20.9189]
[1642548100537,55.9432152,140.64,140.58,0.25]
[1642548100937,79.4740152,140.64,140.58,0.25]
[1642548102938,79.4740152,140.64,140.57,20.9189]
[1642548103137,79.4740152,140.64,140.58,0.25]
[1642548104437,79.4740152,140.64,140.57,20.9189]
[1642548104636,79.4740152,140.64,140.58,0.25]
[1642548105440,79.4740152,140.64,140.57,20.9189]
[1642548105636,10.6711,140.62,140.57,9.75]
[1642548106239,10.6711,140.62,140.58,0.25]
[1642548106439,10.6711,140.62,140.57,9.75]
[1642548106638,13.5142,140.63,140.58,0.25]
[1642548106839,10.6702,140.63,140.58,0.25]
[1642548110943,10.6702,140.63,140.58,6.25]
[1642548111350,10.6702,140.63,140.58,5.75]
[1642548112844,10.6702,140.63,140.59,43.05977325]
[1642548113046,34.2002,140.64,140.59,43.05977325]
[1642548113247,34.2002,140.64,140.6,6.0]
[1642548113844,34.2002,140.64,140.59,43.05977325]
[1642548114845,34.2002,140.64,140.57,20.4194]
[1642548115144,34.2002,140.64,140.58,0.25]
[1642548115748,41.53568627,140.63,140.58,0.25]
[1642548120452,34.2002,140.64,140.58,46.37611082]
[1642548120855,23.5308,140.64,140.58,57.04471082]
[1642548121257,40.75080079,140.63,140.58,57.04471082]
[1642548121554,40.75080079,140.63,140.58,0.25]
[1642548126255,40.75080079,140.63,140.58,10.5]
[1642548129160,40.75080079,140.63,140.58,21.1687]
[1642548133589,23.5308,140.64,140.58,21.1687]
[1642548133790,26.3748,140.64,140.58,21.1687]
[1642548134792,23.5308,140.64,140.58,21.1687]
[1642548137795,26.3748,140.64,140.58,21.1687]
[1642548140099,42.35576188,140.65,140.59,35.3514149]
[1642548140300,3.26623942,140.65,140.6,10.9171]
[1642548140599,1.92354871,140.64,140.61,10.25]
[1642548140801,1.92354871,140.64,140.62,0.25]
[1642548141200,1.92354871,140.64,140.62,45.2129698]
[1642548141402,1.34269071,140.65,140.62,45.2129698]
[1642548142002,1.34269071,140.65,140.62,55.8787698]
[1642548142203,1.34269071,140.65,140.62,66.1287698]
[1642548142803,1.92354871,140.68,140.63,6.0]
[1642548143002,1.92354871,140.68,140.64,10.25]
[1642548143202,1.92354871,140.7,140.64,22.63284938]
[1642548143401,1.92354871,140.7,140.65,7.47114938]
[1642548143603,1.92354871,140.7,140.66,45.66707288]
[1642548143802,1.92354871,140.7,140.66,47.38822226]
[1642548144001,1.92354871,140.7,140.67,7.47114938]
[1642548144202,1.92354871,140.7,140.68,10.5]
[1642548144404,39.31977663,140.73,140.68,22.62944938]
[1642548144602,39.31977663,140.73,140.69,6.0]
[1642548144802,39.31977663,140.73,140.7,10.5]
[1642548145407,1.92354871,140.73,140.7,10.5]
[1642548145604,4.76654871,140.76,140.7,21.159]
[1642548146415,54.32503145,140.76,140.7,56.80667767]
[1642548146805,52.40148274,140.76,140.7,56.80667767]
[1642548147407,2.843,140.76,140.7,63.38567767]
[1642548148608,1.92354871,140.79,140.71,6.0]
[1642548148840,1.92354871,140.8,140.73,10.6552]
[1642548149042,1.92354871,140.8,140.74,10.25]
[1642548149239,1.92354871,140.8,140.74,10.5]
[1642548149439,1.92354871,140.8,140.75,37.58591919]
[1642548149643,1.92354871,140.8,140.75,47.83591919]
[1642548149841,1.92354871,140.8,140.77,10.6539]
[1642548150240,79.54649115,140.82,140.78,0.25]
[1642548151040,79.54649115,140.82,140.75,10.25]
[1642548151241,0.25,140.81,140.75,10.25]
[1642548151441,41.63407556,140.83,140.75,10.25]
[1642548151442,2.841,140.8,140.75,10.25]
[1642548151640,26.8493,140.82,140.75,10.25]
[1642548152340,26.8493,140.82,140.76,0.25]
[1642548152541,41.38845131,140.8,140.76,0.25]
[1642548153347,41.38845131,140.8,140.75,20.9062]
[1642548153543,2.841,140.79,140.75,10.25]
[1642548154244,2.75724872,140.79,140.75,10.25]
[1642548155847,2.75724872,140.79,140.76,0.25]
[1642548156045,41.38845131,140.8,140.76,0.25]
[1642548158649,41.38845131,140.8,140.75,10.25]
[1642548158848,54.88665131,140.8,140.75,10.25]
[1642548159047,52.04565131,140.8,140.75,10.25]
[1642548161852,52.04565131,140.8,140.76,0.25]
[1642548163152,52.04565131,140.8,140.75,10.25]
[1642548164755,52.04565131,140.8,140.76,0.25]
[1642548165156,52.04565131,140.8,140.67,162.9287]
[1642548165359,2.841,140.79,140.68,58.484]
[1642548165559,10.6598,140.77,140.7,10.5]
[1642548165756,19.3628,140.77,140.7,10.5]
[1642548165958,6.0,140.76,140.7,10.5]
[1642548166157,44.77188844,140.75,140.7,10.5]
[1642548167685,44.77188844,140.75,140.7,70.45400204]
[1642548167887,44.77188844,140.75,140.7,21.1597]
[1642548168088,44.77188844,140.75,140.7,22.63084938]
[1642548172595,44.77188844,140.75,140.7,21.1597]
[1642548176999,44.77188844,140.75,140.7,10.5]
[1642548178903,55.43288844,140.75,140.7,10.5]
[1642548180304,16.6622,140.74,140.7,10.5]
[1642548180507,19.5042,140.74,140.7,10.5]
[1642548181707,2.842,140.74,140.7,10.5]
[1642548181906,44.77188844,140.75,140.7,10.5]
[1642548181907,46.69543715,140.75,140.7,11.97114938]
[1642548182306,1.92354871,140.75,140.7,11.97114938]
[1642548182507,28.20524871,140.77,140.7,11.97114938]
[1642548182708,25.36324871,140.77,140.7,11.97114938]
[1642548183407,40.7665706,140.76,140.7,22.63054938]
[1642548184307,40.7665706,140.76,140.7,22.38054938]
[1642548185509,40.7665706,140.76,140.7,20.9094]
[1642548185707,2.842,140.75,140.71,0.25]
[1642548185907,43.6085706,140.76,140.71,0.25]
[1642548186336,43.6085706,140.76,140.71,10.9088]
[1642548187109,40.7665706,140.76,140.71,10.9088]
[1642548187509,40.7665706,140.76,140.71,0.25]
[1642548188112,40.7665706,140.76,140.7,10.25]
[1642548188311,2.842,140.75,140.7,10.25]
[1642548190714,2.842,140.75,140.71,0.25]
[1642548190913,56.19251931,140.76,140.71,0.25]
[1642548191114,54.2689706,140.76,140.71,0.25]
[1642548191714,54.2689706,140.76,140.7,10.25]
[1642548191915,56.19251931,140.76,140.7,10.25]
[1642548192517,56.19251931,140.76,140.71,0.25]
[1642548193216,56.19251931,140.76,140.7,10.25]
[1642548193957,1.92354871,140.75,140.7,10.25]
[1642548195657,1.92354871,140.75,140.71,0.25]
[1642548196058,42.69011931,140.76,140.71,0.25]
[1642548196458,6.0,140.75,140.71,0.25]
[1642548196658,42.69011931,140.76,140.71,0.25]
[1642548197063,6.0,140.75,140.71,0.25]
[1642548198262,42.69011931,140.76,140.71,0.25]
[1642548198461,40.7665706,140.76,140.71,0.25]
[1642548199564,40.7665706,140.76,140.71,10.9088]
[1642548200763,40.7665706,140.76,140.71,54.31513044]
[1642548200962,25.36324871,140.77,140.71,66.03627982]
[1642548201762,68.44425069,140.77,140.71,66.03627982]
[1642548202167,68.44425069,140.77,140.71,22.62994938]
[1642548204064,45.00455069,140.77,140.71,22.62994938]
[1642548204664,43.08100198,140.77,140.71,21.1588]
[1642548204866,43.08100198,140.77,140.71,10.25]
[1642548205064,43.08100198,140.77,140.67,12.25687707]
[1642548205365,31.8174,140.76,140.67,2.00687707]
[1642548205565,32.0674,140.76,140.66,2.00687707]
[1642548206266,10.6634,140.74,140.66,2.00687707]
[1642548206466,2.842,140.73,140.66,7.707e-05]
[1642548206666,9.092,140.73,140.63,14.25144864]
[1642548206866,70.82,140.72,140.63,10.25]
[1642548207066,8.843,140.71,140.63,10.25]
[1642548207266,16.785,140.71,140.63,10.25]
[1642548207469,34.46715116,140.7,140.6,10.25]
[1642548207666,2.843,140.69,140.6,10.25]
[1642548207869,9.093,140.69,140.6,10.25]
[1642548209066,9.093,140.69,140.6,11.72114938]
[1642548209267,10.6684,140.67,140.6,11.72114938]
[1642548209467,45.92500198,140.66,140.6,11.72114938]
[1642548209670,43.08100198,140.66,140.6,11.72114938]
[1642548211572,53.74900198,140.66,140.6,11.72114938]